[Event "*** Titled Tuesday Blitz"]
[Site "Chess.com"]
[Date "2020.05.19"]
[Round "8"]
[White "attack2mateU"]
[Black "Alexander_Moskalenko"]
[Result "0-1"]
[WhiteElo "2621"]
[BlackElo "2820"]
[TimeControl "180+1"]
[EndTime "13:36:18 PDT"]
[Termination "Alexander_Moskalenko won by resignation"]

1. e4 {[%clk 0:03:00.9]} 1... Nf6 {[%clk 0:02:56.6]} 2. e5 {[%clk 0:03:00.7]}
2... Nd5 {[%clk 0:02:56.8]} 3. d4 {[%clk 0:03:01.1]} 3... d6 {[%clk 0:02:52.2]}
4. Nf3 {[%clk 0:03:01.5]} 4... dxe5 {[%clk 0:02:52.6]} 5. Nxe5 {[%clk
0:03:01.3]} 5... c6 {[%clk 0:02:53.1]} 6. Be2 {[%clk 0:03:00.9]} 6... Nd7 {[%clk
0:02:52.3]} 7. Nf3 {[%clk 0:03:00.3]} 7... g6 {[%clk 0:02:52.1]} 8. O-O {[%clk
0:02:59]} 8... Bg7 {[%clk 0:02:52.3]} 9. c4 {[%clk 0:02:58.7]} 9... Nc7 {[%clk
0:02:52.5]} 10. Nc3 {[%clk 0:02:58.3]} 10... O-O {[%clk 0:02:52.5]} 11. Be3
{[%clk 0:02:58]} 11... e5 {[%clk 0:02:50.7]} 12. d5 {[%clk 0:02:55.4]} 12... f5
{[%clk 0:02:49]} 13. Bg5 {[%clk 0:02:53.6]} 13... Bf6 {[%clk 0:02:47.7]} 14.
dxc6 {[%clk 0:02:35.5]} 14... bxc6 {[%clk 0:02:41.2]} 15. Qd6 {[%clk 0:02:15.6]}
15... e4 {[%clk 0:02:13.1]} 16. Nd4 {[%clk 0:02:08.4]} 16... Bxg5 {[%clk
0:00:56.2]} 17. Rad1 {[%clk 0:01:56]} 17... Nb8 {[%clk 0:00:51.6]} 18. Qa3
{[%clk 0:01:48.4]} 18... Qe7 {[%clk 0:00:50.1]} 19. c5 {[%clk 0:01:46.6]} 19...
Ne6 {[%clk 0:00:44.7]} 20. Bc4 {[%clk 0:01:45.5]} 20... Kg7 {[%clk 0:00:44.8]}
21. Na4 {[%clk 0:01:16.2]} 21... Bf6 {[%clk 0:00:20.4]} 22. Nxe6+ {[%clk
0:01:07.1]} 22... Bxe6 {[%clk 0:00:21.3]} 23. Bxe6 {[%clk 0:01:07.2]} 23... Qxe6
{[%clk 0:00:21.8]} 24. Nb6 {[%clk 0:01:07.8]} 24... axb6 {[%clk 0:00:20.5]} 25.
Qxa8 {[%clk 0:01:08.4]} 25... bxc5 {[%clk 0:00:19.4]} 26. Qb7+ {[%clk
0:01:07.8]} 26... Qf7 {[%clk 0:00:19.2]} 27. Qb6 {[%clk 0:01:05.5]} 27... Qxa2
{[%clk 0:00:18.8]} 28. Rd6 {[%clk 0:00:59.9]} 28... Qxb2 {[%clk 0:00:18.1]} 29.
Qxc5 {[%clk 0:00:52]} 29... Be7 {[%clk 0:00:15.5]} 30. Rxg6+ {[%clk 0:00:43]}
30... hxg6 {[%clk 0:00:15]} 31. Qxe7+ {[%clk 0:00:43.5]} 31... Rf7 {[%clk
0:00:15.5]} 32. Qe6 {[%clk 0:00:43.5]} 32... Qf6 {[%clk 0:00:13.5]} 33. Qc8
{[%clk 0:00:43.8]} 33... Nd7 {[%clk 0:00:13.6]} 34. Rd1 {[%clk 0:00:44]} 34...
Ne5 {[%clk 0:00:14.5]} 35. Rd8 {[%clk 0:00:43]} 35... Kh7 {[%clk 0:00:14.8]} 36.
h3 {[%clk 0:00:42.2]} 36... f4 {[%clk 0:00:14.5]} 37. Re8 {[%clk 0:00:37.9]}
37... e3 {[%clk 0:00:13.5]} 38. Qb8 {[%clk 0:00:33.8]} 38... exf2+ {[%clk
0:00:12.3]} 39. Kf1 {[%clk 0:00:32.8]} 39... Nd3 {[%clk 0:00:12.1]} 40. Qb1
{[%clk 0:00:30.9]} 40... Qc3 {[%clk 0:00:11.2]} 41. Rd8 {[%clk 0:00:29.8]} 41...
Qe1+ {[%clk 0:00:10.9]} 0-1

[Event "*** Titled Tuesday Blitz"]
[Site "Chess.com"]
[Date "2020.05.19"]
[Round "8"]
[White "MITerryble"]
[Black "Radzio1987"]
[Result "0-1"]
[WhiteElo "2856"]
[BlackElo "2926"]
[TimeControl "180+1"]
[EndTime "13:36:19 PDT"]
[Termination "Radzio1987 won on time"]

1. d4 {[%clk 0:03:00.9]} 1... Nf6 {[%clk 0:02:59.7]} 2. Nf3 {[%clk 0:03:01]}
2... d5 {[%clk 0:02:59.6]} 3. c4 {[%clk 0:03:01]} 3... e6 {[%clk 0:03:00]} 4. e3
{[%clk 0:03:01.1]} 4... Be7 {[%clk 0:02:59.4]} 5. b3 {[%clk 0:03:01.1]} 5... c5
{[%clk 0:02:58.4]} 6. dxc5 {[%clk 0:02:58.5]} 6... O-O {[%clk 0:02:56]} 7. Nbd2
{[%clk 0:02:55.5]} 7... Nbd7 {[%clk 0:02:54.7]} 8. Bb2 {[%clk 0:02:53.4]} 8...
Nxc5 {[%clk 0:02:54.2]} 9. Be2 {[%clk 0:02:52.3]} 9... b6 {[%clk 0:02:52.8]} 10.
O-O {[%clk 0:02:51.8]} 10... Bb7 {[%clk 0:02:52.8]} 11. Rc1 {[%clk 0:02:45.7]}
11... Rc8 {[%clk 0:02:52.5]} 12. a3 {[%clk 0:02:36.1]} 12... dxc4 {[%clk
0:02:45.4]} 13. Bxc4 {[%clk 0:02:19.7]} 13... Bd5 {[%clk 0:02:45.2]} 14. Qe2
{[%clk 0:01:25]} 14... Bxc4 {[%clk 0:02:12.6]} 15. Rxc4 {[%clk 0:01:25.9]} 15...
Qd3 {[%clk 0:02:05.8]} 16. Qxd3 {[%clk 0:01:25.9]} 16... Nxd3 {[%clk 0:02:06.7]}
17. Bxf6 {[%clk 0:01:26.1]} 17... gxf6 {[%clk 0:02:01.2]} 18. a4 {[%clk
0:00:50.2]} 18... f5 {[%clk 0:01:57.9]} 19. Nd4 {[%clk 0:00:49]} 19... Rxc4
{[%clk 0:01:49.7]} 20. Nxc4 {[%clk 0:00:49.9]} 20... Rc8 {[%clk 0:01:40.1]} 21.
Rd1 {[%clk 0:00:48.9]} 21... Nc5 {[%clk 0:01:38.4]} 22. Ne5 {[%clk 0:00:47.6]}
22... Bf6 {[%clk 0:01:33.8]} 23. Ndc6 {[%clk 0:00:21.7]} 23... Nxb3 {[%clk
0:01:19.7]} 24. g4 {[%clk 0:00:17.4]} 24... Na5 {[%clk 0:01:14]} 25. Nd7 {[%clk
0:00:06]} 25... Nxc6 {[%clk 0:01:00.7]} 26. Nxf6+ {[%clk 0:00:06.1]} 26... Kg7
{[%clk 0:01:01.3]} 27. g5 {[%clk 0:00:06.8]} 27... Ne5 {[%clk 0:00:57.6]} 28. f4
{[%clk 0:00:05.7]} 28... Ng4 {[%clk 0:00:38.3]} 29. Nxg4 {[%clk 0:00:05.6]}
29... fxg4 {[%clk 0:00:39.2]} 30. Rd7 {[%clk 0:00:06.1]} 30... a5 {[%clk
0:00:38.8]} 31. Rb7 {[%clk 0:00:05.4]} 31... Rc4 {[%clk 0:00:38]} 32. Rxb6
{[%clk 0:00:05.2]} 32... Rxa4 {[%clk 0:00:38.9]} 33. Kf2 {[%clk 0:00:03.3]}
33... Kg6 {[%clk 0:00:38.8]} 34. Rb7 {[%clk 0:00:02.3]} 34... Re4 {[%clk
0:00:27.3]} 0-1

[Event "*** Titled Tuesday Blitz"]
[Site "Chess.com"]
[Date "2020.05.19"]
[Round "8"]
[White "northridgehawk"]
[Black "zurzan"]
[Result "0-1"]
[WhiteElo "2227"]
[BlackElo "1951"]
[TimeControl "180+1"]
[EndTime "13:36:19 PDT"]
[Termination "zurzan won by resignation"]

1. e4 {[%clk 0:03:00.9]} 1... Nf6 {[%clk 0:02:59]} 2. e5 {[%clk 0:02:49.4]} 2...
Nd5 {[%clk 0:02:58.9]} 3. c4 {[%clk 0:02:49.4]} 3... Nb6 {[%clk 0:02:58.5]} 4.
d4 {[%clk 0:02:50.3]} 4... d6 {[%clk 0:02:58.2]} 5. f4 {[%clk 0:02:51.2]} 5...
dxe5 {[%clk 0:02:58.1]} 6. fxe5 {[%clk 0:02:52.1]} 6... Nc6 {[%clk 0:02:58.4]}
7. Be3 {[%clk 0:02:50.9]} 7... Bf5 {[%clk 0:02:57.9]} 8. Nc3 {[%clk 0:02:43.7]}
8... e6 {[%clk 0:02:58]} 9. Be2 {[%clk 0:02:38.2]} 9... Be7 {[%clk 0:02:57.9]}
10. Nf3 {[%clk 0:02:37.6]} 10... O-O {[%clk 0:02:57.8]} 11. O-O {[%clk
0:02:35.8]} 11... f6 {[%clk 0:02:58.1]} 12. exf6 {[%clk 0:02:34.9]} 12... Bxf6
{[%clk 0:02:58.1]} 13. b3 {[%clk 0:02:34.3]} 13... Qe7 {[%clk 0:02:55.7]} 14.
Qd2 {[%clk 0:02:31.1]} 14... Rad8 {[%clk 0:02:54.6]} 15. Rad1 {[%clk 0:02:30.6]}
15... h6 {[%clk 0:02:53]} 16. Qb2 {[%clk 0:02:09.3]} 16... Bg6 {[%clk
0:02:47.9]} 17. a3 {[%clk 0:02:08.2]} 17... e5 {[%clk 0:02:43.1]} 18. d5 {[%clk
0:02:07.2]} 18... Nd4 {[%clk 0:02:40.4]} 19. Nxd4 {[%clk 0:02:02.9]} 19... exd4
{[%clk 0:02:40.2]} 20. Bxd4 {[%clk 0:02:02.4]} 20... Bxd4+ {[%clk 0:02:39.6]}
21. Rxd4 {[%clk 0:01:56.3]} 21... Qe3+ {[%clk 0:02:39.4]} 22. Kh1 {[%clk
0:01:56.1]} 22... Rxf1+ {[%clk 0:02:37.8]} 23. Bxf1 {[%clk 0:01:55.9]} 23...
Qxd4 {[%clk 0:02:38.4]} 24. Qc1 {[%clk 0:01:54.3]} 24... Rf8 {[%clk 0:02:33.8]}
25. Be2 {[%clk 0:01:42]} 25... Nd7 {[%clk 0:02:17.3]} 26. Nb5 {[%clk 0:01:21.3]}
26... Qe5 {[%clk 0:01:55.9]} 27. Bf3 {[%clk 0:01:16.6]} 27... a6 {[%clk
0:01:43.8]} 28. Nc3 {[%clk 0:01:14.5]} 28... Nc5 {[%clk 0:01:39.1]} 29. b4
{[%clk 0:00:59.4]} 29... Nd3 {[%clk 0:01:38.3]} 30. Qd2 {[%clk 0:00:52]} 30...
Qe1+ {[%clk 0:01:35.9]} 31. Qxe1 {[%clk 0:00:51.5]} 31... Nxe1 {[%clk
0:01:36.8]} 32. Be2 {[%clk 0:00:50.2]} 32... Nc2 {[%clk 0:01:34.4]} 33. Kg1
{[%clk 0:00:50.2]} 33... Nxa3 {[%clk 0:01:33.8]} 34. c5 {[%clk 0:00:49.4]} 34...
Nc2 {[%clk 0:01:28.2]} 35. b5 {[%clk 0:00:46.8]} 35... axb5 {[%clk 0:01:28]} 36.
Bxb5 {[%clk 0:00:47.6]} 36... Nd4 {[%clk 0:01:25.5]} 37. Bf1 {[%clk 0:00:45.8]}
37... Rd8 {[%clk 0:01:17.8]} 38. h3 {[%clk 0:00:45.6]} 38... Bf7 {[%clk
0:01:16.4]} 39. Kf2 {[%clk 0:00:40.6]} 39... Kf8 {[%clk 0:01:13.7]} 40. Ke3
{[%clk 0:00:39.6]} 40... Nf5+ {[%clk 0:01:13.4]} 41. Kf4 {[%clk 0:00:38.6]}
41... g6 {[%clk 0:01:13.1]} 42. Ke5 {[%clk 0:00:36.9]} 42... Re8+ {[%clk
0:01:11.4]} 43. Kf6 {[%clk 0:00:36]} 43... Ne3 {[%clk 0:01:07.1]} 44. Bd3 {[%clk
0:00:33.1]} 44... Nxg2 {[%clk 0:01:05.2]} 45. Bb5 {[%clk 0:00:26.4]} 45... Re3
{[%clk 0:00:56.8]} 46. Nd1 {[%clk 0:00:13.6]} 46... Rf3+ {[%clk 0:00:56.2]} 47.
Ke5 {[%clk 0:00:13.2]} 47... Rf5+ {[%clk 0:00:54.3]} 48. Ke4 {[%clk 0:00:12.3]}
48... Bxd5+ {[%clk 0:00:53.1]} 49. Kd4 {[%clk 0:00:11.8]} 49... c6 {[%clk
0:00:53.1]} 0-1

[Event "*** Titled Tuesday Blitz"]
[Site "Chess.com"]
[Date "2020.05.19"]
[Round "8"]
[White "JoakimVonAnd"]
[Black "GelmanAlexander"]
[Result "1-0"]
[WhiteElo "2471"]
[BlackElo "2574"]
[TimeControl "180+1"]
[EndTime "13:36:20 PDT"]
[Termination "JoakimVonAnd won by resignation"]

1. d4 {[%clk 0:03:00.9]} 1... Nf6 {[%clk 0:02:59]} 2. c4 {[%clk 0:03:01]} 2...
c5 {[%clk 0:02:59.1]} 3. d5 {[%clk 0:03:00.4]} 3... b5 {[%clk 0:02:59.1]} 4.
cxb5 {[%clk 0:03:01.3]} 4... a6 {[%clk 0:02:59.4]} 5. e3 {[%clk 0:03:02.2]} 5...
e6 {[%clk 0:02:59.2]} 6. Nc3 {[%clk 0:03:01.7]} 6... exd5 {[%clk 0:02:59.6]} 7.
Nxd5 {[%clk 0:03:01.1]} 7... Bb7 {[%clk 0:03:00.2]} 8. Nxf6+ {[%clk 0:02:56.2]}
8... Qxf6 {[%clk 0:03:01.1]} 9. Nf3 {[%clk 0:02:56.4]} 9... Be7 {[%clk
0:02:58.3]} 10. bxa6 {[%clk 0:02:55.3]} 10... Nxa6 {[%clk 0:02:52.4]} 11. Bb5
{[%clk 0:02:54.8]} 11... O-O {[%clk 0:02:48.5]} 12. Qxd7 {[%clk 0:02:49.1]}
12... Bxf3 {[%clk 0:02:21.7]} 13. gxf3 {[%clk 0:02:47.8]} 13... Nb4 {[%clk
0:02:22.1]} 14. O-O {[%clk 0:02:38.9]} 14... Rfd8 {[%clk 0:02:13.6]} 15. Qh3
{[%clk 0:02:33.1]} 15... Rd5 {[%clk 0:01:28.9]} 16. f4 {[%clk 0:02:30.3]} 16...
g6 {[%clk 0:01:26.3]} 17. Qg2 {[%clk 0:02:26.1]} 17... Rad8 {[%clk 0:01:24.5]}
18. Bc4 {[%clk 0:02:22.9]} 18... Rd1 {[%clk 0:01:19.8]} 19. a3 {[%clk
0:02:21.6]} 19... Nc2 {[%clk 0:01:17.2]} 20. Rb1 {[%clk 0:02:19.3]} 20... Ne1
{[%clk 0:01:15.1]} 21. Qe4 {[%clk 0:02:06.7]} 21... Qh4 {[%clk 0:01:11.4]} 22.
Be2 {[%clk 0:02:03.4]} 22... f5 {[%clk 0:00:52.8]} 23. Qc4+ {[%clk 0:01:33.9]}
23... Kf8 {[%clk 0:00:52]} 24. Bxd1 {[%clk 0:01:32.8]} 24... Rxd1 {[%clk
0:00:50.5]} 25. Qe2 {[%clk 0:01:32.5]} 25... Qh3 {[%clk 0:00:21.8]} 26. Rxe1
{[%clk 0:01:25.4]} 26... Qg4+ {[%clk 0:00:22.2]} 27. Qxg4 {[%clk 0:01:04.6]}
27... Rxe1+ {[%clk 0:00:22.6]} 28. Kg2 {[%clk 0:01:03.2]} 28... fxg4 {[%clk
0:00:23.5]} 29. b4 {[%clk 0:01:01.9]} 29... cxb4 {[%clk 0:00:21.9]} 30. axb4
{[%clk 0:01:02.8]} 30... h5 {[%clk 0:00:13]} 31. b5 {[%clk 0:00:58.2]} 31... h4
{[%clk 0:00:12.8]} 32. h3 {[%clk 0:00:56.7]} 32... gxh3+ {[%clk 0:00:11.6]} 33.
Kxh3 {[%clk 0:00:57.6]} 33... Rh1+ {[%clk 0:00:11.5]} 34. Kg2 {[%clk 0:00:57]}
34... Rd1 {[%clk 0:00:11.3]} 35. b6 {[%clk 0:00:56.7]} 35... Bd6 {[%clk
0:00:12]} 36. b7 {[%clk 0:00:56.2]} 36... Kf7 {[%clk 0:00:12.6]} 37. Ra1 {[%clk
0:00:48.8]} 37... Ke6 {[%clk 0:00:04]} 38. Bb2 {[%clk 0:00:48.1]} 38... Rd2
{[%clk 0:00:04.6]} 39. Rb1 {[%clk 0:00:41.2]} 39... Bb8 {[%clk 0:00:04.1]} 40.
Be5 {[%clk 0:00:39.3]} 40... Rd8 {[%clk 0:00:03.6]} 41. Bxb8 {[%clk 0:00:38.3]}
41... Rxb8 {[%clk 0:00:03.8]} 42. Kh3 {[%clk 0:00:38.5]} 1-0

[Event "*** Titled Tuesday Blitz"]
[Site "Chess.com"]
[Date "2020.05.19"]
[Round "8"]
[White "Paul66666"]
[Black "NormWeinstein"]
[Result "1-0"]
[WhiteElo "2610"]
[BlackElo "2457"]
[TimeControl "180+1"]
[EndTime "13:36:21 PDT"]
[Termination "Paul66666 won by checkmate"]

1. d4 {[%clk 0:02:37.4]} 1... Nf6 {[%clk 0:02:57.2]} 2. Bg5 {[%clk 0:02:36.1]}
2... e6 {[%clk 0:02:55.2]} 3. e4 {[%clk 0:02:35]} 3... h6 {[%clk 0:02:53.9]} 4.
Bxf6 {[%clk 0:02:33.9]} 4... Qxf6 {[%clk 0:02:53.5]} 5. c3 {[%clk 0:02:34.8]}
5... g6 {[%clk 0:02:51.1]} 6. Bd3 {[%clk 0:02:31.8]} 6... Bg7 {[%clk 0:02:50.6]}
7. Ne2 {[%clk 0:02:31.7]} 7... d6 {[%clk 0:02:50.1]} 8. O-O {[%clk 0:02:30.5]}
8... Qe7 {[%clk 0:02:47.4]} 9. f4 {[%clk 0:02:30.3]} 9... Nc6 {[%clk 0:02:44.9]}
10. Nd2 {[%clk 0:02:28.5]} 10... Bd7 {[%clk 0:02:44.2]} 11. Kh1 {[%clk
0:02:26.3]} 11... O-O-O {[%clk 0:02:43.5]} 12. b4 {[%clk 0:02:25.3]} 12... g5
{[%clk 0:02:40.1]} 13. b5 {[%clk 0:02:24.5]} 13... Nb8 {[%clk 0:02:37.7]} 14. a4
{[%clk 0:02:05]} 14... gxf4 {[%clk 0:02:32.5]} 15. Nxf4 {[%clk 0:02:03.1]} 15...
Rhg8 {[%clk 0:02:19.2]} 16. a5 {[%clk 0:02:01.3]} 16... Qg5 {[%clk 0:02:14.9]}
17. b6 {[%clk 0:01:52.3]} 17... a6 {[%clk 0:02:04.8]} 18. bxc7 {[%clk
0:01:48.9]} 18... Kxc7 {[%clk 0:02:04.5]} 19. Nc4 {[%clk 0:01:47.9]} 19... Bc6
{[%clk 0:01:57.4]} 20. Nb6 {[%clk 0:01:37.3]} 20... Nd7 {[%clk 0:01:40.7]} 21.
Nh3 {[%clk 0:01:32.7]} 21... Qe7 {[%clk 0:01:24.5]} 22. d5 {[%clk 0:01:29.1]}
22... exd5 {[%clk 0:01:18.3]} 23. exd5 {[%clk 0:01:28.7]} 23... Bb5 {[%clk
0:00:59.4]} 24. Bxb5 {[%clk 0:01:27.5]} 24... axb5 {[%clk 0:00:57.9]} 25. Qd3
{[%clk 0:01:15.8]} 25... Nc5 {[%clk 0:00:53]} 26. Qxb5 {[%clk 0:01:09.6]} 26...
Bxc3 {[%clk 0:00:52.6]} 27. Rac1 {[%clk 0:00:49.8]} 27... Bd2 {[%clk 0:00:39.6]}
28. Rxc5+ {[%clk 0:00:26.1]} 28... dxc5 {[%clk 0:00:38.1]} 29. a6 {[%clk
0:00:27]} 29... Qe4 {[%clk 0:00:32.9]} 30. Rg1 {[%clk 0:00:26.4]} 30... Rxg2
{[%clk 0:00:28.6]} 31. Rxg2 {[%clk 0:00:22.2]} 31... Qe1+ {[%clk 0:00:20.2]} 32.
Ng1 {[%clk 0:00:20.1]} 32... Be3 {[%clk 0:00:19.8]} 33. axb7 {[%clk 0:00:16.8]}
33... Bxg1 {[%clk 0:00:19.6]} 34. Qc6+ {[%clk 0:00:10.4]} 34... Kb8 {[%clk
0:00:18.3]} 35. Qc8+ {[%clk 0:00:08.2]} 35... Ka7 {[%clk 0:00:14.2]} 36. b8=Q#
{[%clk 0:00:07.4]} 1-0

[Event "*** Titled Tuesday Blitz"]
[Site "Chess.com"]
[Date "2020.05.19"]
[Round "8"]
[White "BlackBoarder"]
[Black "manmanlai1"]
[Result "1-0"]
[WhiteElo "2586"]
[BlackElo "2354"]
[TimeControl "180+1"]
[EndTime "13:36:21 PDT"]
[Termination "BlackBoarder won by resignation"]

1. e4 {[%clk 0:03:00.9]} 1... c5 {[%clk 0:02:59.8]} 2. Nf3 {[%clk 0:03:00.6]}
2... e6 {[%clk 0:03:00.1]} 3. c3 {[%clk 0:03:00.5]} 3... Nf6 {[%clk 0:02:57.1]}
4. e5 {[%clk 0:03:00.6]} 4... Nd5 {[%clk 0:02:57.1]} 5. d4 {[%clk 0:03:00.9]}
5... cxd4 {[%clk 0:02:57]} 6. cxd4 {[%clk 0:03:00.4]} 6... Nc6 {[%clk
0:02:55.8]} 7. a3 {[%clk 0:02:59.7]} 7... d6 {[%clk 0:02:54.9]} 8. Bd3 {[%clk
0:02:59.8]} 8... dxe5 {[%clk 0:02:52.1]} 9. dxe5 {[%clk 0:02:59.5]} 9... Be7
{[%clk 0:02:52.7]} 10. O-O {[%clk 0:02:58.9]} 10... h6 {[%clk 0:02:47.6]} 11.
Bd2 {[%clk 0:02:51.7]} 11... b6 {[%clk 0:02:41.6]} 12. Nc3 {[%clk 0:02:35.5]}
12... Bb7 {[%clk 0:02:35.1]} 13. Qe2 {[%clk 0:02:29.4]} 13... Nxc3 {[%clk
0:02:26.2]} 14. Bxc3 {[%clk 0:02:28.5]} 14... Rc8 {[%clk 0:02:25.3]} 15. Rfd1
{[%clk 0:02:21.7]} 15... Qc7 {[%clk 0:02:25.5]} 16. h4 {[%clk 0:02:10.7]} 16...
Rd8 {[%clk 0:02:15.4]} 17. h5 {[%clk 0:01:35.4]} 17... Rd7 {[%clk 0:02:11.4]}
18. Rac1 {[%clk 0:01:12.2]} 18... a5 {[%clk 0:02:00.6]} 19. Bb5 {[%clk
0:00:56.7]} 19... Rxd1+ {[%clk 0:01:56.2]} 20. Rxd1 {[%clk 0:00:47.8]} 20... O-O
{[%clk 0:01:55.8]} 21. Bd3 {[%clk 0:00:43.1]} 21... Nb8 {[%clk 0:01:34.1]} 22.
Bb1 {[%clk 0:00:37.9]} 22... Rd8 {[%clk 0:01:09.5]} 23. Re1 {[%clk 0:00:26.3]}
23... Nd7 {[%clk 0:01:07.2]} 24. Qd3 {[%clk 0:00:20.3]} 24... Nf8 {[%clk
0:01:06.5]} 25. Qe2 {[%clk 0:00:16]} 25... a4 {[%clk 0:00:53.5]} 26. Nd4 {[%clk
0:00:11.8]} 26... Bc5 {[%clk 0:00:50.1]} 27. Rd1 {[%clk 0:00:10]} 27... Bxd4
{[%clk 0:00:44.2]} 28. Bxd4 {[%clk 0:00:08.5]} 28... Qc6 {[%clk 0:00:42.2]} 29.
f3 {[%clk 0:00:07.7]} 29... Qd7 {[%clk 0:00:18.4]} 30. Rd2 {[%clk 0:00:06.6]}
30... Bc6 {[%clk 0:00:16.2]} 31. Be3 {[%clk 0:00:05.1]} 31... Qb7 {[%clk
0:00:15.1]} 32. Rxd8 {[%clk 0:00:06]} 1-0

[Event "*** Titled Tuesday Blitz"]
[Site "Chess.com"]
[Date "2020.05.19"]
[Round "8"]
[White "Gerodot71"]
[Black "AlanZhang"]
[Result "0-1"]
[WhiteElo "2364"]
[BlackElo "2235"]
[TimeControl "180+1"]
[EndTime "13:36:21 PDT"]
[Termination "AlanZhang won by resignation"]

1. d4 {[%clk 0:03:00.9]} 1... Nf6 {[%clk 0:02:36.6]} 2. c4 {[%clk 0:03:01.1]}
2... e6 {[%clk 0:02:36.6]} 3. Nf3 {[%clk 0:03:00.5]} 3... d5 {[%clk 0:02:36.9]}
4. g3 {[%clk 0:03:00]} 4... dxc4 {[%clk 0:02:37]} 5. Bg2 {[%clk 0:02:59.7]} 5...
c6 {[%clk 0:02:37.5]} 6. Ne5 {[%clk 0:02:56.9]} 6... b5 {[%clk 0:02:37.9]} 7.
Nxc6 {[%clk 0:02:56.3]} 7... Qb6 {[%clk 0:02:38.2]} 8. Nxb8 {[%clk 0:02:33.8]}
8... Rxb8 {[%clk 0:02:39.1]} 9. O-O {[%clk 0:02:33.5]} 9... Bb7 {[%clk
0:02:37.4]} 10. e4 {[%clk 0:02:31.9]} 10... Nxe4 {[%clk 0:02:26.3]} 11. Re1
{[%clk 0:02:26.6]} 11... Nf6 {[%clk 0:02:23.6]} 12. Bg5 {[%clk 0:02:17.1]} 12...
Bxg2 {[%clk 0:02:18.1]} 13. Kxg2 {[%clk 0:02:17.2]} 13... Qb7+ {[%clk
0:02:05.8]} 14. Kg1 {[%clk 0:02:16.5]} 14... Be7 {[%clk 0:01:27.5]} 15. Nd2
{[%clk 0:02:15.5]} 15... O-O {[%clk 0:01:26.6]} 16. Bxf6 {[%clk 0:02:12.2]}
16... Bxf6 {[%clk 0:01:27.5]} 17. Ne4 {[%clk 0:02:12.2]} 17... Be7 {[%clk
0:01:27.1]} 18. Qh5 {[%clk 0:02:09.2]} 18... Rfd8 {[%clk 0:01:00]} 19. Rad1
{[%clk 0:02:05.6]} 19... Rd5 {[%clk 0:00:59.5]} 20. Qg4 {[%clk 0:01:58.8]} 20...
f5 {[%clk 0:00:35.4]} 21. Qh3 {[%clk 0:01:53.3]} 21... fxe4 {[%clk 0:00:34.7]}
22. Qxe6+ {[%clk 0:01:54.2]} 22... Kh8 {[%clk 0:00:25.3]} 23. Rxe4 {[%clk
0:01:54.5]} 23... Rd7 {[%clk 0:00:24.5]} 24. d5 {[%clk 0:01:53.2]} 24... Rbd8
{[%clk 0:00:12.4]} 25. d6 {[%clk 0:01:44.5]} 25... h6 {[%clk 0:00:12.5]} 26.
Red4 {[%clk 0:01:35.2]} 26... Bf6 {[%clk 0:00:12.5]} 27. R4d2 {[%clk 0:01:34.9]}
27... Qc6 {[%clk 0:00:12.5]} 28. h4 {[%clk 0:01:32.6]} 28... b4 {[%clk
0:00:12.5]} 29. g4 {[%clk 0:00:57.2]} 29... c3 {[%clk 0:00:11.8]} 30. bxc3
{[%clk 0:00:43.4]} 30... bxc3 {[%clk 0:00:12.7]} 31. Rd3 {[%clk 0:00:43.2]}
31... c2 {[%clk 0:00:11.9]} 32. Rc1 {[%clk 0:00:41.8]} 32... Rxd6 {[%clk
0:00:11.6]} 33. Rxd6 {[%clk 0:00:42.2]} 33... Rxd6 {[%clk 0:00:11]} 34. Qb3
{[%clk 0:00:42.6]} 34... Rd2 {[%clk 0:00:07.6]} 35. f3 {[%clk 0:00:35.6]} 35...
Qc5+ {[%clk 0:00:06.9]} 36. Kh1 {[%clk 0:00:34.6]} 36... Qf2 {[%clk 0:00:06]}
37. Qb8+ {[%clk 0:00:30.3]} 37... Bd8 {[%clk 0:00:05.7]} 38. Rg1 {[%clk
0:00:30.5]} 38... Qxf3+ {[%clk 0:00:04.8]} 0-1

[Event "*** Titled Tuesday Blitz"]
[Site "Chess.com"]
[Date "2020.05.19"]
[Round "8"]
[White "DonPreuss"]
[Black "florianschwabeneder"]
[Result "0-1"]
[WhiteElo "2225"]
[BlackElo "2517"]
[TimeControl "180+1"]
[EndTime "13:36:22 PDT"]
[Termination "florianschwabeneder won by checkmate"]

1. d4 {[%clk 0:03:00.9]} 1... Nf6 {[%clk 0:02:59.4]} 2. Nc3 {[%clk 0:02:59.9]}
2... d5 {[%clk 0:02:58.8]} 3. e4 {[%clk 0:03:00]} 3... dxe4 {[%clk 0:02:57.4]}
4. f3 {[%clk 0:02:59.8]} 4... Bf5 {[%clk 0:02:45.3]} 5. fxe4 {[%clk 0:02:59.1]}
5... Nxe4 {[%clk 0:02:45.6]} 6. Qf3 {[%clk 0:02:59.1]} 6... Nd6 {[%clk
0:02:36.9]} 7. Bf4 {[%clk 0:02:59.1]} 7... e6 {[%clk 0:02:34.3]} 8. O-O-O {[%clk
0:02:58.6]} 8... c6 {[%clk 0:02:30.5]} 9. g4 {[%clk 0:02:51.3]} 9... Bg6 {[%clk
0:02:29.3]} 10. Qe3 {[%clk 0:02:35.2]} 10... Be7 {[%clk 0:02:26.8]} 11. Nf3
{[%clk 0:02:20.4]} 11... Nd7 {[%clk 0:02:24.4]} 12. Ne5 {[%clk 0:01:31]} 12...
Nf6 {[%clk 0:02:21.2]} 13. Nxg6 {[%clk 0:01:24]} 13... hxg6 {[%clk 0:02:20]} 14.
Qg3 {[%clk 0:01:16.4]} 14... Nd5 {[%clk 0:02:04.2]} 15. Nxd5 {[%clk 0:01:15.7]}
15... cxd5 {[%clk 0:02:03]} 16. Bxd6 {[%clk 0:01:09.8]} 16... Qxd6 {[%clk
0:01:54.5]} 17. Bb5+ {[%clk 0:01:10.3]} 17... Kd8 {[%clk 0:01:49.6]} 18. Qf3
{[%clk 0:01:07]} 18... Bf6 {[%clk 0:01:34.4]} 19. h3 {[%clk 0:01:05.1]} 19... g5
{[%clk 0:01:33]} 20. Kb1 {[%clk 0:01:00.5]} 20... a6 {[%clk 0:01:31.7]} 21. Bd3
{[%clk 0:00:55.3]} 21... Qf4 {[%clk 0:01:24.2]} 22. Qxf4 {[%clk 0:00:51.5]}
22... gxf4 {[%clk 0:01:24.2]} 23. Be2 {[%clk 0:00:51.9]} 23... g5 {[%clk
0:01:22.7]} 24. Bf3 {[%clk 0:00:51]} 24... Rc8 {[%clk 0:01:21.3]} 25. c3 {[%clk
0:00:51.2]} 25... Kd7 {[%clk 0:01:20.3]} 26. Bg2 {[%clk 0:00:46.9]} 26... Kd6
{[%clk 0:01:19.8]} 27. Rd3 {[%clk 0:00:45.7]} 27... b5 {[%clk 0:01:18.8]} 28. a3
{[%clk 0:00:43.8]} 28... a5 {[%clk 0:01:18.8]} 29. Kc2 {[%clk 0:00:43.7]} 29...
b4 {[%clk 0:01:17.3]} 30. axb4 {[%clk 0:00:44.6]} 30... axb4 {[%clk 0:01:17.5]}
31. Ra1 {[%clk 0:00:43.4]} 31... Ra8 {[%clk 0:01:15.8]} 32. Rdd1 {[%clk
0:00:43.4]} 32... Rhc8 {[%clk 0:01:09.6]} 33. Rxa8 {[%clk 0:00:28.1]} 33... Rxa8
{[%clk 0:01:09.2]} 34. Bf3 {[%clk 0:00:24.3]} 34... bxc3 {[%clk 0:01:07.4]} 35.
bxc3 {[%clk 0:00:23.5]} 35... Ra2+ {[%clk 0:01:06]} 36. Kd3 {[%clk 0:00:21.7]}
36... Bd8 {[%clk 0:00:53.3]} 37. Be2 {[%clk 0:00:18.9]} 37... Ba5 {[%clk
0:00:51.1]} 38. Rb1 {[%clk 0:00:17.7]} 38... Bxc3 {[%clk 0:00:35.7]} 39. Bf3
{[%clk 0:00:11.3]} 39... Ba5 {[%clk 0:00:33.1]} 40. Rd1 {[%clk 0:00:07.9]} 40...
f6 {[%clk 0:00:30.5]} 41. Rb1 {[%clk 0:00:07.5]} 41... Rd2# {[%clk 0:00:29.6]}
0-1